[Event "22nd Ruzomberok Open 2019"]
[Site "Ruzomberok"]
[Date "2019.07.01"]
[Round "3.13"]
[White "Borsos, Bogdan"]
[Black "Taragel, Marian"]
[Result "1-0"]
[ECO "A05"]
[WhiteElo "2216"]
[BlackElo "1636"]
[Annotator "NA"]
[PlyCount "87"]
[EventDate "2019.06.29"]
[EventType "swiss"]
[EventCountry "SVK"]
[SourceTitle "playchess.com"]
[Source "ChessBase"]
[SourceQuality "1"]
[TimeControl "40/5400+30:1800+30"]

1. Nf3 {[%emt 0:00:00]} Nf6 {[%emt 0:00:06]} 2. c4 {[%emt 0:00:00]} e6 {[%emt 0:01:28]} 3. g3 {[%emt 0:02:09]} d5 {[%emt 0:01:54]} 4. Bg2 {[%emt 0:00:14]} Bd6 {[%emt 0:01:25]} 5. d4 {[%emt 0:01:01]} O-O {[%emt 0:02:10]} 6. O-O {[%emt 0:00:56]} c6 {[%emt 0:02:14]} 7. Nc3 {[%emt 0:01:01]} Nbd7 {[%emt 0:01:54]} 8. Nd2 {[%emt 0:00:12]} dxc4 {[%emt 0:01:21]} 9. Nxc4 {[%emt 0:00:10]} Bc7 {[%emt 0:01:29]} 10. b3 {[%emt 0:05:21]} Nb6 {[%emt 0:01:53]} 11. Ba3 {[%emt 0:00:28]} Re8 {[%emt 0:01:09]} 12. e3 {[%emt 0:01:04]} Nfd5 {[%emt 0:04:36]} 13. Ne4 {[%emt 0:00:37]} Nxc4 {[%emt 0:03:02]} 14. bxc4 {[%emt 0:00:12]} Nf6 {[%emt 0:01:59]} 15. Nc5 {[%emt 0:07:17]} Nd7 {[%emt 0:03:45]} 16. Nxd7 {[%emt 0:06:14]} Qxd7 {[%emt 0:01:04]} 17. Rb1 {[%emt 0:00:15]} b6 {[%emt 0:05:44]} 18. Qa4 {[%emt 0:01:34]} Bb7 {[%emt 0:00:54]} 19. d5 {[%emt 0:00:34]} exd5 {[%emt 0:12:42]} 20. cxd5 {[%emt 0:01:50]} b5 {[%emt 0:01:11]} 21. dxc6 {[%emt 0:00:11]} Bxc6 {[%emt 0:00:27]} 22. Bxc6 {[%emt 0:00:17]} Qxc6 {[%emt 0:00:23]} 23. Qxb5 {[%emt 0:01:04]} Qxb5 {[%emt 0:01:38]} 24. Rxb5 {[%emt 0:00:07]} Rab8 {[%emt 0:00:55]} 25. Rfb1 {[%emt 0:01:58]} Rxb5 {[%emt 0:01:50]} 26. Rxb5 {[%emt 0:00:03]} Rb8 {[%emt 0:01:16]} 27. Rxb8+ {[%emt 0:00:50]} Bxb8 {[%emt 0:00:09]} 28. Bc5 {[%emt 0:00:05]} f6 {[%emt 0:03:39]} 29. Kf1 {[%emt 0:02:39]} Kf7 {[%emt 0:01:03]} 30. Ke2 {[%emt 0:00:03]} Ke6 {[%emt 0:02:48]} 31. Kd3 {[%emt 0:00:06]} Kd5 {[%emt 0:02:14]} 32. Bd4 {[%emt 0:00:07]} a6 {[%emt 0:01:59]} 33. e4+ {[%emt 0:01:27]} Kc6 {[%emt 0:01:57]} 34. Kc4 {[%emt 0:00:29]} Bd6 {[%emt 0:03:16]} 35. f4 {[%emt 0:02:59]} Be7 {[%emt 0:01:36]} 36. g4 {[%emt 0:03:17]} g6 {[%emt 0:04:41]} 37. h3 {[%emt 0:02:50]} h6 {[%emt 0:04:25]} 38. Bc3 {[%emt 0:03:31]} g5 {[%emt 0:02:53]} 39. f5 {[%emt 0:01:24]} Bd8 {[%emt 0:01:31]} 40. e5 {[%emt 0:00:58]} fxe5 {[%emt 0:01:06]} 41. Bxe5 {[%emt 0:30:08]} Kd7 {[%emt 0:31:07]} 42. Kd5 {[%emt 0:04:44]} Ke8 {[%emt 0:01:03]} 43. Ke6 {[%emt 0:00:17]} Be7 {[%emt 0:00:40]} 44. Bg7 {[%emt 0:00:38]} 1-0

[Event "22nd Ruzomberok Open 2019"]
[Site "Ruzomberok"]
[Date "2019.07.01"]
[Round "3.14"]
[White "Korenova, Simona"]
[Black "Bemak, Mikhail"]
[Result "1-0"]
[ECO "A34"]
[WhiteElo "1764"]
[BlackElo "2102"]
[Annotator "NA"]
[PlyCount "61"]
[EventDate "2019.06.29"]
[EventType "swiss"]
[EventCountry "SVK"]
[SourceTitle "playchess.com"]
[Source "ChessBase"]
[SourceQuality "1"]
[TimeControl "40/5400+30:1800+30"]

1. c4 {[%emt 0:00:00]} c5 {[%emt 0:00:00]} 2. Nc3 {[%emt 0:00:00]} Nf6 {[%emt 0:00:04]} 3. g3 {[%emt 0:00:24]} d5 {[%emt 0:00:07]} 4. cxd5 {[%emt 0:00:36]} Nxd5 {[%emt 0:00:06]} 5. Bg2 {[%emt 0:00:14]} Nc7 {[%emt 0:00:08]} 6. Nf3 {[%emt 0:01:10]} Nc6 {[%emt 0:00:08]} 7. O-O {[%emt 0:00:40]} e5 {[%emt 0:00:19]} 8. d3 {[%emt 0:02:53]} Be7 {[%emt 0:00:13]} 9. b3 {[%emt 0:01:04]} O-O {[%emt 0:01:08]} 10. Bb2 {[%emt 0:01:21]} f6 {[%emt 0:01:21]} 11. Rc1 {[%emt 0:00:52]} Be6 {[%emt 0:03:13]} 12. Na4 {[%emt 0:06:43]} b6 {[%emt 0:01:20]} 13. e3 {[%emt 0:05:49]} Nb4 {[%emt 0:18:57]} 14. Ne1 {[%emt 0:07:27]} Bd5 {[%emt 0:09:56]} 15. a3 {[%emt 0:04:50]} Bxg2 {[%emt 0:01:40]} 16. Kxg2 {[%emt 0:00:28]} Nba6 {[%emt 0:11:03]} 17. Nf3 {[%emt 0:09:04]} Qd5 {[%emt 0:03:08]} 18. Nc3 {[%emt 0:03:41]} Qb7 {[%emt 0:00:15]} 19. Kg1 {[%emt 0:03:15]} Rad8 {[%emt 0:01:26]} 20. Qe2 {[%emt 0:02:08]} Rfe8 {[%emt 0:00:56]} 21. Nh4 {[%emt 0:04:48]} Ne6 {[%emt 0:02:16]} 22. Qg4 {[%emt 0:03:12]} Bf8 {[%emt 0:00:12]} 23. Ne4 {[%emt 0:02:10]} Qf7 {[%emt 0:11:09]} 24. f4 {[%emt 0:09:28]} h5 {[%emt 0:01:01]} 25. Qf5 {[%emt 0:02:10]} exf4 {[%emt 0:00:53]} 26. gxf4 {[%emt 0:13:28]} Nac7 {[%emt 0:00:53]} 27. Ng6 {[%emt 0:01:42]} Rd5 {[%emt 0:00:41]} 28. Be5 {[%emt 0:04:30]} fxe5 {[%emt 0:19:04]} 29. Qxh5 {[%emt 0:00:12]} Qd7 {[%emt 0:02:05]} 30. fxe5 {[%emt 0:05:29]} Nf4 {[%emt 0:02:54]} 31. Rxf4 {[%emt 0:00:50]} 1-0

[Event "22nd Ruzomberok Open 2019"]
[Site "Ruzomberok"]
[Date "2019.07.01"]
[Round "3.15"]
[White "Balogh, Peter"]
[Black "Gasper, Jaroslav"]
[Result "1-0"]
[ECO "D01"]
[WhiteElo "2037"]
[BlackElo "1772"]
[Annotator "NA"]
[PlyCount "73"]
[EventDate "2019.06.29"]
[EventType "swiss"]
[EventCountry "SVK"]
[SourceTitle "playchess.com"]
[Source "ChessBase"]
[SourceQuality "1"]
[TimeControl "40/5400+30:1800+30"]

1. d4 {[%emt 0:00:00]} d5 {[%emt 0:55:39]} 2. Nc3 {[%emt 0:00:41]} Bf5 {[%emt 0:00:23]} 3. f3 {[%emt 0:00:49]} Nf6 {[%emt 0:00:57]} 4. Bg5 {[%emt 0:00:13]} Nbd7 {[%emt 0:00:30]} 5. Nxd5 {[%emt 0:00:28]} Nxd5 {[%emt 0:00:50]} 6. e4 {[%emt 0:00:10]} h6 {[%emt 0:01:01]} 7. Bc1 {[%emt 0:03:26]} e6 {[%emt 0:01:59]} 8. exf5 {[%emt 0:00:37]} exf5 {[%emt 0:00:37]} 9. Bc4 {[%emt 0:08:48]} N7b6 {[%emt 0:00:24]} 10. Bb3 {[%emt 0:00:45]} Bd6 {[%emt 0:00:22]} 11. Ne2 {[%emt 0:00:54]} g5 {[%emt 0:00:56]} 12. O-O {[%emt 0:01:15]} Nf6 {[%emt 0:05:51]} 13. Qd3 {[%emt 0:04:01]} Qd7 {[%emt 0:02:21]} 14. c4 {[%emt 0:00:13]} Be7 {[%emt 0:00:49]} 15. a4 {[%emt 0:01:02]} a5 {[%emt 0:00:18]} 16. Ng3 {[%emt 0:00:33]} c5 {[%emt 0:01:18]} 17. Nxf5 {[%emt 0:00:52]} O-O-O {[%emt 0:00:47]} 18. d5 {[%emt 0:00:33]} Kb8 {[%emt 0:02:40]} 19. Bd2 {[%emt 0:00:45]} g4 {[%emt 0:00:38]} 20. Bxa5 {[%emt 0:00:32]} gxf3 {[%emt 0:01:01]} 21. Qxf3 {[%emt 0:00:18]} Ka7 {[%emt 0:00:28]} 22. Nxe7 {[%emt 0:00:22]} Qxe7 {[%emt 0:00:10]} 23. Bxb6+ {[%emt 0:00:22]} Kxb6 {[%emt 0:00:06]} 24. Qxf6+ {[%emt 0:00:16]} Qd6 {[%emt 0:01:17]} 25. Qxd6+ {[%emt 0:00:26]} Rxd6 {[%emt 0:00:02]} 26. Rxf7 {[%emt 0:00:27]} Rg8 {[%emt 0:00:14]} 27. a5+ {[%emt 0:00:36]} Ka6 {[%emt 0:00:06]} 28. Ba4 {[%emt 0:00:12]} Rdg6 {[%emt 0:00:12]} 29. Bb5+ {[%emt 0:00:24]} Ka7 {[%emt 0:00:01]} 30. g3 {[%emt 0:00:13]} Kb8 {[%emt 0:00:28]} 31. a6 {[%emt 0:00:30]} bxa6 {[%emt 0:01:11]} 32. Bc6 {[%emt 0:00:16]} R6g7 {[%emt 0:00:17]} 33. Rxg7 {[%emt 0:00:21]} Rxg7 {[%emt 0:00:02]} 34. d6 {[%emt 0:01:10]} Ka7 {[%emt 0:00:15]} 35. Re1 {[%emt 0:00:30]} Kb6 {[%emt 0:00:10]} 36. d7 {[%emt 0:00:24]} Kc7 {[%emt 0:00:16]} 37. Re8 {[%emt 0:00:23]} 1-0

[Event "22nd Ruzomberok Open 2019"]
[Site "Ruzomberok"]
[Date "2019.07.01"]
[Round "3.16"]
[White "Mudron, Jan"]
[Black "Palider, Pavol"]
[Result "0-1"]
[ECO "A50"]
[WhiteElo "1756"]
[BlackElo "2026"]
[Annotator "NA"]
[PlyCount "82"]
[EventDate "2019.06.29"]
[EventType "swiss"]
[EventCountry "SVK"]
[SourceTitle "playchess.com"]
[Source "ChessBase"]
[SourceQuality "1"]
[TimeControl "40/5400+30:1800+30"]

1. d4 {[%emt 0:00:00]} Nf6 {[%emt 0:00:00]} 2. c4 {[%emt 0:00:00]} Nc6 {[%emt 0:00:00]} 3. Nf3 {[%emt 0:00:21]} d6 {[%emt 0:00:00]} 4. Nc3 {[%emt 0:00:46]} Bg4 {[%emt 0:00:23]} 5. e3 {[%emt 0:01:41]} e5 {[%emt 0:00:30]} 6. dxe5 {[%emt 0:00:59]} Nxe5 {[%emt 0:00:43]} 7. Be2 {[%emt 0:00:05]} Bxf3 {[%emt 0:03:07]} 8. Bxf3 {[%emt 0:00:02]} c6 {[%emt 0:00:14]} 9. Be2 {[%emt 0:00:19]} Be7 {[%emt 0:00:36]} 10. O-O {[%emt 0:00:18]} O-O {[%emt 0:00:06]} 11. b3 {[%emt 0:01:10]} Qd7 {[%emt 0:00:47]} 12. Bb2 {[%emt 0:00:56]} Rad8 {[%emt 0:00:09]} 13. Qd4 {[%emt 0:09:23]} b6 {[%emt 0:02:24]} 14. Rad1 {[%emt 0:01:18]} Qc7 {[%emt 0:00:12]} 15. e4 {[%emt 0:12:31]} Ne8 {[%emt 0:04:54]} 16. Qe3 {[%emt 0:05:06]} Ng6 {[%emt 0:01:27]} 17. h3 {[%emt 0:07:44]} Nf6 {[%emt 0:01:39]} 18. Rd2 {[%emt 0:06:31]} d5 {[%emt 0:02:40]} 19. exd5 {[%emt 0:16:50]} Bc5 {[%emt 0:03:19]} 20. Qd3 {[%emt 0:00:27]} Nf4 {[%emt 0:01:10]} 21. Qc2 {[%emt 0:01:50]} Rfe8 {[%emt 0:07:17]} 22. Bf3 {[%emt 0:00:48]} cxd5 {[%emt 0:04:11]} 23. Nxd5 {[%emt 0:01:26]} N6xd5 {[%emt 0:00:16]} 24. cxd5 {[%emt 0:01:49]} Qd6 {[%emt 0:01:57]} 25. Qd1 {[%emt 0:03:15]} Qg6 {[%emt 0:01:26]} 26. Kh1 {[%emt 0:01:15]} Bd6 {[%emt 0:00:30]} 27. h4 {[%emt 0:08:56]} Qh6 {[%emt 0:04:18]} 28. g3 {[%emt 0:00:11]} Ng6 {[%emt 0:01:45]} 29. Kg2 {[%emt 0:04:59]} f5 {[%emt 0:02:46]} 30. Rh1 {[%emt 0:01:53]} f4 {[%emt 0:00:35]} 31. Bh5 {[%emt 0:00:17]} fxg3 {[%emt 0:01:05]} 32. fxg3 {[%emt 0:00:48]} Re3 {[%emt 0:03:13]} 33. Rh3 {[%emt 0:01:54]} Rde8 {[%emt 0:01:25]} 34. Bxg6 {[%emt 0:01:54]} Qxg6 {[%emt 0:00:27]} 35. Bd4 {[%emt 0:04:43]} Rxg3+ {[%emt 0:00:22]} 36. Rxg3 {[%emt 0:00:08]} Qxg3+ {[%emt 0:00:10]} 37. Kf1 {[%emt 0:01:02]} Qxh4 {[%emt 0:01:52]} 38. Rg2 {[%emt 0:01:32]} g6 {[%emt 0:01:45]} 39. Bf2 {[%emt 0:01:24]} Rf8 {[%emt 0:02:57]} 40. Qe2 {[%emt 0:02:40]} Qh1+ {[%emt 0:01:12]} 41. Rg1 {[%emt 0:01:12]} Qxd5 {[%emt 0:00:00]} 0-1

[Event "22nd Ruzomberok Open 2019"]
[Site "Ruzomberok"]
[Date "2019.07.01"]
[Round "3.18"]
[White "Jakab, Stefan"]
[Black "Baleja, Marian"]
[Result "1/2-1/2"]
[ECO "B33"]
[WhiteElo "1751"]
[BlackElo "1951"]
[Annotator "NA"]
[PlyCount "56"]
[EventDate "2019.06.29"]
[EventType "swiss"]
[EventCountry "SVK"]
[SourceTitle "playchess.com"]
[Source "ChessBase"]
[SourceQuality "1"]
[TimeControl "40/5400+30:1800+30"]

1. e4 {[%emt 0:00:00]} c5 {[%emt 0:01:27]} 2. Nf3 {[%emt 0:00:00]} Nc6 {[%emt 0:00:26]} 3. d4 {[%emt 0:00:00]} cxd4 {[%emt 0:00:11]} 4. Nxd4 {[%emt 0:00:08]} Nf6 {[%emt 0:00:25]} 5. Nc3 {[%emt 0:00:20]} e5 {[%emt 0:00:15]} 6. Ndb5 {[%emt 0:01:49]} d6 {[%emt 0:00:09]} 7. Bg5 {[%emt 0:00:35]} a6 {[%emt 0:00:07]} 8. Na3 {[%emt 0:03:15]} b5 {[%emt 0:00:31]} 9. Nd5 {[%emt 0:01:26]} Be7 {[%emt 0:00:06]} 10. Bxf6 {[%emt 0:00:57]} Bxf6 {[%emt 0:00:04]} 11. c3 {[%emt 0:01:16]} O-O {[%emt 0:00:22]} 12. Be2 {[%emt 0:01:45]} Bg5 {[%emt 0:02:05]} 13. O-O {[%emt 0:10:27]} f5 {[%emt 0:02:59]} 14. f4 {[%emt 0:02:22]} exf4 {[%emt 0:10:42]} 15. Nxf4 {[%emt 0:02:07]} Kh8 {[%emt 0:10:42]} 16. exf5 {[%emt 0:02:03]} Bxf5 {[%emt 0:06:09]} 17. Nd5 {[%emt 0:04:34]} Ne7 {[%emt 0:04:48]} 18. Bf3 {[%emt 0:06:40]} Ra7 {[%emt 0:03:28]} 19. Nc2 {[%emt 0:04:50]} Bxc2 {[%emt 0:13:13]} 20. Qxc2 {[%emt 0:00:06]} Rxf3 {[%emt 0:00:08]} 21. Rxf3 {[%emt 0:03:28]} Nxd5 {[%emt 0:00:00]} 22. Qf5 {[%emt 0:04:14]} Be3+ {[%emt 0:00:16]} 23. Kh1 {[%emt 0:00:06]} Ne7 {[%emt 0:00:20]} 24. Qf8+ {[%emt 0:03:52]} Qxf8 {[%emt 0:00:02]} 25. Rxf8+ {[%emt 0:00:14]} Ng8 {[%emt 0:00:01]} 26. Re1 {[%emt 0:04:34]} Re7 {[%emt 0:00:29]} 27. Ra8 {[%emt 0:00:29]} h6 {[%emt 0:11:43]} 28. Rxa6 {[%emt 0:01:49]} Rf7 1/2-1/2

[Event "22nd Ruzomberok Open 2019"]
[Site "Ruzomberok"]
[Date "2019.07.01"]
[Round "3.19"]
[White "Druska, Robert"]
[Black "Mc Aleenan, Charles"]
[Result "0-1"]
[ECO "B01"]
[WhiteElo "1918"]
[BlackElo "1746"]
[Annotator "NA"]
[PlyCount "48"]
[EventDate "2019.06.29"]
[EventType "swiss"]
[EventCountry "SVK"]
[SourceTitle "playchess.com"]
[Source "ChessBase"]
[SourceQuality "1"]
[TimeControl "40/5400+30:1800+30"]

1. e4 {[%emt 0:00:00]} d5 {[%emt 0:00:00]} 2. exd5 {[%emt 0:00:03]} Qxd5 {[%emt 0:00:02]} 3. Nc3 {[%emt 0:00:23]} Qd6 {[%emt 0:00:13]} 4. d4 {[%emt 0:00:51]} Nf6 {[%emt 0:00:33]} 5. g3 {[%emt 0:02:44]} Bg4 {[%emt 0:05:24]} 6. Qd3 {[%emt 0:02:22]} c6 {[%emt 0:03:48]} 7. Nge2 {[%emt 0:07:43]} e6 {[%emt 0:03:34]} 8. Bf4 {[%emt 0:03:17]} Qd8 {[%emt 0:01:16]} 9. Bg2 {[%emt 0:01:58]} Bd6 {[%emt 0:03:27]} 10. O-O-O {[%emt 0:03:42]} Bxf4+ {[%emt 0:03:19]} 11. gxf4 {[%emt 0:01:03]} Nbd7 {[%emt 0:03:41]} 12. Rde1 {[%emt 0:07:22]} Bf5 {[%emt 0:03:38]} 13. Qe3 {[%emt 0:02:33]} Qa5 {[%emt 0:03:09]} 14. Ng3 {[%emt 0:02:08]} g6 {[%emt 0:03:37]} 15. d5 {[%emt 0:23:22]} cxd5 {[%emt 0:05:24]} 16. Qd4 {[%emt 0:02:56]} O-O-O {[%emt 0:02:19]} 17. Na4 {[%emt 0:07:27]} Kb8 {[%emt 0:03:36]} 18. Re3 {[%emt 0:01:05]} Rc8 {[%emt 0:03:12]} 19. Nxf5 {[%emt 0:00:18]} gxf5 {[%emt 0:00:11]} 20. Ra3 {[%emt 0:01:43]} Rc4 {[%emt 0:03:14]} 21. Qd2 {[%emt 0:01:07]} Qxd2+ {[%emt 0:01:37]} 22. Kxd2 {[%emt 0:00:03]} Rxf4 {[%emt 0:00:21]} 23. Ke3 {[%emt 0:00:28]} Rc4 {[%emt 0:02:52]} 24. Rc1 {[%emt 0:01:02]} Ng4+ {[%emt 0:02:35] Kd4} 0-1

[Event "22nd Ruzomberok Open 2019"]
[Site "Ruzomberok"]
[Date "2019.07.01"]
[Round "3.20"]
[White "Zentko, Ladislav"]
[Black "Koloditsova, Renata"]
[Result "0-1"]
[ECO "D47"]
[WhiteElo "1732"]
[BlackElo "1903"]
[Annotator "NA"]
[PlyCount "42"]
[EventDate "2019.06.29"]
[EventType "swiss"]
[EventCountry "SVK"]
[SourceTitle "playchess.com"]
[Source "ChessBase"]
[SourceQuality "1"]
[TimeControl "40/5400+30:1800+30"]

1. Nf3 {[%emt 0:00:00]} d5 {[%emt 0:00:00]} 2. d4 {[%emt 0:00:08]} Nf6 {[%emt 0:00:00]} 3. c4 {[%emt 0:00:05]} c6 {[%emt 0:00:08]} 4. Nc3 {[%emt 0:00:38]} e6 {[%emt 0:00:27]} 5. e3 {[%emt 0:00:58]} Nbd7 {[%emt 0:00:57]} 6. Bd3 {[%emt 0:00:20]} dxc4 {[%emt 0:01:14]} 7. Bxc4 {[%emt 0:00:08]} b5 {[%emt 0:00:09]} 8. Bd3 {[%emt 0:00:45]} Bb7 {[%emt 0:00:32]} 9. O-O {[%emt 0:00:27]} Be7 {[%emt 0:00:43]} 10. Re1 {[%emt 0:02:39]} a6 {[%emt 0:00:56]} 11. a3 {[%emt 0:00:05]} c5 {[%emt 0:03:25]} 12. e4 {[%emt 0:07:59]} cxd4 {[%emt 0:02:35]} 13. Nxd4 {[%emt 0:00:23]} Ne5 {[%emt 0:03:01]} 14. Bf1 {[%emt 0:08:36]} O-O {[%emt 0:03:17]} 15. Bf4 {[%emt 0:04:07]} Ng6 {[%emt 0:05:35]} 16. Bg3 {[%emt 0:01:29]} Bc5 {[%emt 0:01:24]} 17. Nb3 {[%emt 0:05:29]} Bb6 {[%emt 0:01:22]} 18. Bd6 {[%emt 0:04:28]} Re8 {[%emt 0:02:13]} 19. e5 {[%emt 0:05:39]} Nd5 {[%emt 0:01:13]} 20. Nxd5 {[%emt 0:08:49]} Bxd5 {[%emt 0:00:54]} 21. Nd4 {[%emt 0:01:09]} Qh4 {[%emt 0:02:09]} 0-1

[Event "22nd Ruzomberok Open 2019"]
[Site "Ruzomberok"]
[Date "2019.07.01"]
[Round "3.21"]
[White "Pecho, Juraj"]
[Black "Laurencsik, Alexander"]
[Result "1-0"]
[ECO "A01"]
[WhiteElo "1900"]
[BlackElo "1742"]
[Annotator "NA"]
[PlyCount "133"]
[EventDate "2019.06.29"]
[EventType "swiss"]
[EventCountry "SVK"]
[SourceTitle "playchess.com"]
[Source "ChessBase"]
[SourceQuality "1"]
[TimeControl "40/5400+30:1800+30"]

1. b3 {[%emt 0:01:57]} Nf6 {[%emt 0:00:00]} 2. Bb2 {[%emt 0:00:08]} d6 {[%emt 0:00:03]} 3. Nf3 {[%emt 0:00:50]} Nbd7 {[%emt 0:00:16]} 4. d4 {[%emt 0:03:27]} g6 {[%emt 0:00:14]} 5. g3 {[%emt 0:00:12]} Bg7 {[%emt 0:00:08]} 6. Bg2 {[%emt 0:00:08]} O-O {[%emt 0:00:09]} 7. O-O {[%emt 0:00:33]} h6 {[%emt 0:04:39]} 8. c4 {[%emt 0:01:03]} c6 {[%emt 0:01:26]} 9. Nc3 {[%emt 0:00:48]} d5 {[%emt 0:02:27]} 10. Qc2 {[%emt 0:10:54]} Re8 {[%emt 0:04:23]} 11. Rfd1 {[%emt 0:03:13]} Nf8 {[%emt 0:01:56]} 12. Ne5 {[%emt 0:03:14]} e6 {[%emt 0:01:40]} 13. a4 {[%emt 0:06:54]} a6 {[%emt 0:04:33]} 14. a5 {[%emt 0:00:47]} N6d7 {[%emt 0:01:48]} 15. f4 {[%emt 0:00:50]} Nxe5 {[%emt 0:00:25]} 16. dxe5 {[%emt 0:02:54]} Qe7 {[%emt 0:02:43]} 17. Ba3 {[%emt 0:00:39]} Qc7 {[%emt 0:03:50]} 18. Bd6 {[%emt 0:01:57]} Qd8 {[%emt 0:00:33]} 19. Bc5 {[%emt 0:04:10]} Nd7 {[%emt 0:01:29]} 20. Bd6 {[%emt 0:08:22]} Bf8 {[%emt 0:01:23]} 21. Bxf8 {[%emt 0:00:46]} Kxf8 {[%emt 0:02:44]} 22. h4 {[%emt 0:09:30]} h5 {[%emt 0:07:00]} 23. Bf3 {[%emt 0:02:18]} Kg7 {[%emt 0:01:22]} 24. Kh2 {[%emt 0:00:06]} Qe7 {[%emt 0:04:55]} 25. e4 {[%emt 0:02:31]} dxc4 {[%emt 0:01:44]} 26. bxc4 {[%emt 0:00:02]} b5 {[%emt 0:05:31]} 27. axb6 {[%emt 0:02:31]} Nxb6 {[%emt 0:02:03]} 28. Na4 {[%emt 0:03:13]} Nxa4 {[%emt 0:01:46]} 29. Qxa4 {[%emt 0:00:03]} Qc5 {[%emt 0:03:28]} 30. Rd6 {[%emt 0:03:26]} Rb8 {[%emt 0:06:59]} 31. Ra2 {[%emt 0:04:51]} Rb1 {[%emt 0:03:18]} 32. Bd1 {[%emt 0:01:38]} Bb7 {[%emt 0:05:29]} 33. Qc2 {[%emt 0:01:44]} Rb4 {[%emt 0:05:46]} 34. Be2 {[%emt 0:02:30]} Qf2+ {[%emt 0:05:49]} 35. Kh3 {[%emt 0:00:02]} Qg1 {[%emt 0:03:03]} 36. Rd1 {[%emt 0:00:28]} Qc5 {[%emt 0:01:10]} 37. Qd2 {[%emt 0:03:02]} Rb3 {[%emt 0:04:48]} 38. Bf1 {[%emt 0:07:30]} Qe3 {[%emt 0:06:27]} 39. Qxe3 {[%emt 0:02:54]} Rxe3 {[%emt 0:00:09]} 40. Rb1 {[%emt 0:01:36]} Re7 {[%emt 0:01:15]} 41. Rab2 {[%emt 0:31:34]} Bc8 {[%emt 0:01:58]} 42. Rb8 {[%emt 0:00:00]} Rc7 {[%emt 0:01:18]} 43. Rd1 {[%emt 0:00:00]} Bd7 {[%emt 0:07:37]} 44. c5 {[%emt 0:00:00]} f6 {[%emt 0:04:14]} 45. exf6+ {[%emt 0:00:00]} Kxf6 {[%emt 0:00:16]} 46. e5+ {[%emt 0:00:00]} Ke7 {[%emt 0:01:50]} 47. Bd3 {[%emt 0:00:00]} Kf7 {[%emt 0:00:32]} 48. Bxa6 {[%emt 0:00:00]} Rc3 {[%emt 0:00:37]} 49. Rh8 {[%emt 0:00:00]} Rxc5 {[%emt 0:04:03]} 50. Rh7+ {[%emt 0:00:00]} Ke8 {[%emt 0:00:22]} 51. Rb1 {[%emt 0:00:00]} Rb5 {[%emt 0:02:02]} 52. Bxb5 {[%emt 0:00:00]} cxb5 {[%emt 0:00:06]} 53. Rxb5 {[%emt 0:00:00]} Rc1 {[%emt 0:04:47]} 54. Rb8+ {[%emt 0:00:00]} Bc8 {[%emt 0:00:11]} 55. Rg7 {[%emt 0:00:00]} Kd8 {[%emt 0:00:28]} 56. Rb6 {[%emt 0:00:00]} Rc2 {[%emt 0:02:12]} 57. Rd6+ {[%emt 0:00:00]} Ke8 {[%emt 0:00:14]} 58. Rh7 {[%emt 0:00:09]} Rc1 {[%emt 0:00:37]} 59. Kg2 {[%emt 0:00:15]} Rc2+ {[%emt 0:00:16]} 60. Kf3 {[%emt 0:00:09]} Rc3+ {[%emt 0:00:33]} 61. Ke4 {[%emt 0:00:16]} Rc1 {[%emt 0:01:58]} 62. Rg7 {[%emt 0:01:58]} Rc3 {[%emt 0:00:49]} 63. Kd4 {[%emt 0:00:31]} Rc1 {[%emt 0:00:27]} 64. Rxg6 {[%emt 0:00:19]} Kf7 {[%emt 0:00:11]} 65. Rg5 {[%emt 0:00:38]} Rg1 {[%emt 0:00:54]} 66. Ke3 {[%emt 0:00:08]} Bb7 {[%emt 0:00:26]} 67. Rd7+ {[%emt 0:00:04]} 1-0

[Event "22nd Ruzomberok Open 2019"]
[Site "Ruzomberok"]
[Date "2019.07.01"]
[Round "3.22"]
[White "Cabanova, Kristina"]
[Black "Janik, Miroslav"]
[Result "1/2-1/2"]
[ECO "D02"]
[WhiteElo "1728"]
[BlackElo "1889"]
[Annotator "NA"]
[PlyCount "88"]
[EventDate "2019.06.29"]
[EventType "swiss"]
[EventCountry "SVK"]
[SourceTitle "playchess.com"]
[Source "ChessBase"]
[SourceQuality "1"]
[TimeControl "40/5400+30:1800+30"]

1. d4 {[%emt 0:00:00]} d5 {[%emt 0:02:06]} 2. Nf3 {[%emt 0:00:00]} Nf6 {[%emt 0:00:15]} 3. Bf4 {[%emt 0:00:04]} c6 {[%emt 0:02:29]} 4. e3 {[%emt 0:00:39]} Bf5 {[%emt 0:01:35]} 5. c3 {[%emt 0:02:28]} e6 {[%emt 0:00:45]} 6. Nbd2 {[%emt 0:00:48]} Qb6 {[%emt 0:06:00]} 7. Qb3 {[%emt 0:02:34]} Nbd7 {[%emt 0:00:36]} 8. h3 {[%emt 0:02:59]} h5 {[%emt 0:01:07]} 9. Be2 {[%emt 0:01:38]} Ne4 {[%emt 0:02:37]} 10. O-O {[%emt 0:06:28]} Qxb3 {[%emt 0:01:42]} 11. axb3 {[%emt 0:02:33]} f6 {[%emt 0:02:26]} 12. Nxe4 {[%emt 0:07:20]} Bxe4 {[%emt 0:04:42]} 13. Nd2 {[%emt 0:00:41]} Bf5 {[%emt 0:01:22]} 14. c4 {[%emt 0:04:52]} g5 {[%emt 0:00:47]} 15. Bh2 {[%emt 0:00:40]} Be7 {[%emt 0:04:10]} 16. f3 {[%emt 0:07:39]} Bb4 {[%emt 0:04:27]} 17. Nb1 {[%emt 0:02:35]} Bxb1 {[%emt 0:01:02]} 18. Raxb1 {[%emt 0:01:07]} Bd2 {[%emt 0:00:57]} 19. Kf2 {[%emt 0:00:55]} f5 {[%emt 0:01:21]} 20. Rfd1 {[%emt 0:03:32]} Bb4 {[%emt 0:00:20]} 21. Ra1 {[%emt 0:02:06]} Nf6 {[%emt 0:04:55]} 22. c5 {[%emt 0:05:41]} O-O {[%emt 0:03:40]} 23. Ra4 {[%emt 0:01:46]} a5 {[%emt 0:01:14]} 24. Rda1 {[%emt 0:01:42]} Rac8 {[%emt 0:01:15]} 25. Bd6 {[%emt 0:01:42]} Rf7 {[%emt 0:00:49]} 26. Bd3 {[%emt 0:02:41]} g4 {[%emt 0:04:27]} 27. Rh1 {[%emt 0:02:30]} gxf3 {[%emt 0:08:59]} 28. gxf3 {[%emt 0:00:09]} Kh7 {[%emt 0:01:46]} 29. Be5 {[%emt 0:01:49]} Nd7 {[%emt 0:02:45]} 30. Bf4 {[%emt 0:03:26]} Rg7 {[%emt 0:14:14]} 31. Raa1 {[%emt 0:01:54]} Rcg8 {[%emt 0:01:18]} 32. Rhg1 {[%emt 0:00:21]} b6 {[%emt 0:01:43]} 33. Rxg7+ {[%emt 0:02:25]} Rxg7 {[%emt 0:00:11]} 34. cxb6 {[%emt 0:00:35]} Nxb6 {[%emt 0:00:26]} 35. Rc1 {[%emt 0:00:39]} Nd7 {[%emt 0:06:16]} 36. Rxc6 {[%emt 0:01:07]} Nf8 {[%emt 0:00:22]} 37. Rc7 {[%emt 0:06:27]} Rxc7 {[%emt 0:03:19]} 38. Bxc7 {[%emt 0:00:06]} Kg7 {[%emt 0:00:43]} 39. Bb5 {[%emt 0:02:14]} Kf7 {[%emt 0:01:31]} 40. Bd8 {[%emt 0:02:35]} Ng6 {[%emt 0:02:14]} 41. Bc6 Nf8 42. e4 fxe4 43. fxe4 dxe4 44. Bxe4 Ng6 1/2-1/2